[Event "Early-Titled-Tuesday-Blitz-July-09-2024"]
[Site "Chess.com"]
[Date "2024.07.09"]
[Round "7"]
[White "tylityli"]
[Black "Slovineanu"]
[Result "0-1"]
[WhiteElo "2383"]
[BlackElo "2552"]
[TimeControl "180+1"]
[EndTime "9:20:23 PDT"]
[Termination "Slovineanu won on time"]

1. d4 {[%clk 0:03:00.9]} 1... Nf6 {[%clk 0:02:59.1]} 2. c4 {[%clk 0:03:00.7]}
2... e6 {[%clk 0:02:59.3]} 3. Nc3 {[%clk 0:03:00.8]} 3... d5 {[%clk 0:03:00.2]}
4. cxd5 {[%clk 0:03:00.5]} 4... Nxd5 {[%clk 0:03:00.2]} 5. e4 {[%clk 0:02:59.2]}
5... Nxc3 {[%clk 0:02:59.8]} 6. bxc3 {[%clk 0:03:00.1]} 6... c5 {[%clk
0:03:00.3]} 7. Nf3 {[%clk 0:02:58.4]} 7... cxd4 {[%clk 0:03:01.2]} 8. cxd4
{[%clk 0:02:58]} 8... Bb4+ {[%clk 0:03:01.4]} 9. Bd2 {[%clk 0:02:58.1]} 9...
Bxd2+ {[%clk 0:03:01.8]} 10. Qxd2 {[%clk 0:02:59]} 10... O-O {[%clk 0:03:02]}
11. Bc4 {[%clk 0:02:57.2]} 11... Nd7 {[%clk 0:03:01.9]} 12. O-O {[%clk
0:02:56.2]} 12... b6 {[%clk 0:03:02.2]} 13. d5 {[%clk 0:02:53.6]} 13... Nc5
{[%clk 0:03:01.8]} 14. Qf4 {[%clk 0:02:47.6]} 14... Qf6 {[%clk 0:02:29.5]} 15.
Qxf6 {[%clk 0:02:29.4]} 15... gxf6 {[%clk 0:02:29.3]} 16. Rfe1 {[%clk
0:02:30.1]} 16... Rd8 {[%clk 0:02:20.8]} 17. Rad1 {[%clk 0:02:25.6]} 17... Bb7
{[%clk 0:02:16.1]} 18. h3 {[%clk 0:02:09.1]} 18... Rac8 {[%clk 0:02:06.7]} 19.
Rd4 {[%clk 0:01:38.1]} 19... a6 {[%clk 0:01:34.9]} 20. Red1 {[%clk 0:01:31.9]}
20... b5 {[%clk 0:01:14]} 21. Bd3 {[%clk 0:01:20.5]} 21... Kf8 {[%clk
0:00:55.5]} 22. Bb1 {[%clk 0:01:15.2]} 22... Ke7 {[%clk 0:00:47.5]} 23. d6+
{[%clk 0:01:14.6]} 23... Kf8 {[%clk 0:00:40.9]} 24. e5 {[%clk 0:00:57.7]} 24...
Bxf3 {[%clk 0:00:39.8]} 25. gxf3 {[%clk 0:00:57.2]} 25... fxe5 {[%clk
0:00:38.5]} 26. Rh4 {[%clk 0:00:56.8]} 26... Rc6 {[%clk 0:00:31.5]} 27. Rxh7
{[%clk 0:00:51.4]} 27... Rcxd6 {[%clk 0:00:30]} 28. Rh8+ {[%clk 0:00:44.8]}
28... Ke7 {[%clk 0:00:30.1]} 29. Rxd8 {[%clk 0:00:44]} 29... Rxd8 {[%clk
0:00:29.3]} 30. Rc1 {[%clk 0:00:39.1]} 30... Na4 {[%clk 0:00:24.6]} 31. Kg2
{[%clk 0:00:36.7]} 31... b4 {[%clk 0:00:21.2]} 32. h4 {[%clk 0:00:33.2]} 32...
a5 {[%clk 0:00:19.9]} 33. h5 {[%clk 0:00:31.5]} 33... Nc3 {[%clk 0:00:19.8]} 34.
h6 {[%clk 0:00:23.5]} 34... Rh8 {[%clk 0:00:18.6]} 35. Rh1 {[%clk 0:00:10.1]}
35... Nxb1 {[%clk 0:00:18.3]} 36. Rxb1 {[%clk 0:00:10]} 36... Rxh6 {[%clk
0:00:18.8]} 37. Rc1 {[%clk 0:00:10.7]} 37... Rh4 {[%clk 0:00:17.7]} 38. Rc5
{[%clk 0:00:09.4]} 38... a4 {[%clk 0:00:17]} 39. Rxe5 {[%clk 0:00:09]} 39... Rc4
{[%clk 0:00:14.6]} 40. Rb5 {[%clk 0:00:07.6]} 40... a3 {[%clk 0:00:12.4]} 41.
Rb6 {[%clk 0:00:05.3]} 41... Kd7 {[%clk 0:00:12]} 42. Kg3 {[%clk 0:00:05.6]}
42... Kc7 {[%clk 0:00:12.1]} 43. Rb5 {[%clk 0:00:05.8]} 43... Kc6 {[%clk
0:00:12.4]} 44. Rb8 {[%clk 0:00:05.9]} 44... Kc5 {[%clk 0:00:12.7]} 45. f4
{[%clk 0:00:02.3]} 45... Rd4 {[%clk 0:00:12.7]} 46. Kg4 {[%clk 0:00:01.9]} 46...
Rd2 {[%clk 0:00:12.6]} 0-1

[Event "Early-Titled-Tuesday-Blitz-July-09-2024"]
[Site "Chess.com"]
[Date "2024.07.09"]
[Round "7"]
[White "Witik"]
[Black "JosefineHeinemann"]
[Result "0-1"]
[WhiteElo "2664"]
[BlackElo "2530"]
[TimeControl "180+1"]
[EndTime "9:20:24 PDT"]
[Termination "JosefineHeinemann won by resignation"]

1. d4 {[%clk 0:02:59.8]} 1... Nf6 {[%clk 0:02:58.6]} 2. Bf4 {[%clk 0:02:59.8]}
2... d5 {[%clk 0:02:57.9]} 3. e3 {[%clk 0:03:00.2]} 3... c5 {[%clk 0:02:57.5]}
4. c3 {[%clk 0:03:00.4]} 4... Nc6 {[%clk 0:02:56.1]} 5. Nd2 {[%clk 0:03:00.8]}
5... cxd4 {[%clk 0:02:41.2]} 6. exd4 {[%clk 0:03:00.2]} 6... Bg4 {[%clk
0:02:40.7]} 7. Be2 {[%clk 0:02:56]} 7... Bxe2 {[%clk 0:02:40]} 8. Qxe2 {[%clk
0:02:56.3]} 8... e6 {[%clk 0:02:40.9]} 9. Ngf3 {[%clk 0:02:56.2]} 9... Bd6
{[%clk 0:02:39.5]} 10. Bg3 {[%clk 0:02:55.3]} 10... O-O {[%clk 0:02:39.5]} 11.
O-O {[%clk 0:02:53.3]} 11... Qc7 {[%clk 0:02:37.6]} 12. Bxd6 {[%clk 0:02:45.6]}
12... Qxd6 {[%clk 0:02:37.3]} 13. Ne5 {[%clk 0:02:46.3]} 13... Nd7 {[%clk
0:02:35.2]} 14. f4 {[%clk 0:02:42.6]} 14... f6 {[%clk 0:02:24.3]} 15. Nd3 {[%clk
0:02:37.6]} 15... Rfe8 {[%clk 0:02:22.3]} 16. Nf3 {[%clk 0:02:32.1]} 16... b5
{[%clk 0:02:20.7]} 17. b4 {[%clk 0:02:25.8]} 17... a5 {[%clk 0:02:08]} 18. a3
{[%clk 0:02:25.9]} 18... axb4 {[%clk 0:02:06.2]} 19. axb4 {[%clk 0:02:25.4]}
19... Nb6 {[%clk 0:02:02.3]} 20. Rxa8 {[%clk 0:02:23]} 20... Rxa8 {[%clk
0:02:01.5]} 21. Nc5 {[%clk 0:02:23.5]} 21... Nc4 {[%clk 0:01:46.9]} 22. Qxe6+
{[%clk 0:02:12.1]} 22... Qxe6 {[%clk 0:01:46.5]} 23. Nxe6 {[%clk 0:02:13]} 23...
Ra3 {[%clk 0:01:45]} 24. Rc1 {[%clk 0:02:08.9]} 24... Ra2 {[%clk 0:01:19.8]} 25.
Ne1 {[%clk 0:01:33.5]} 25... Ne3 {[%clk 0:01:04.1]} 26. Nc7 {[%clk 0:01:31.6]}
26... Na7 {[%clk 0:00:59.1]} 27. g3 {[%clk 0:01:22]} 27... Kf7 {[%clk 0:00:58]}
28. Nd3 {[%clk 0:01:17]} 28... Rg2+ {[%clk 0:00:56.7]} 29. Kh1 {[%clk
0:01:17.4]} 29... Rd2 {[%clk 0:00:50.5]} 30. Ne1 {[%clk 0:01:09.7]} 30... Ra2
{[%clk 0:00:47.8]} 31. f5 {[%clk 0:00:52.5]} 31... g6 {[%clk 0:00:37]} 32. fxg6+
{[%clk 0:00:48.5]} 32... hxg6 {[%clk 0:00:37]} 33. Nd3 {[%clk 0:00:47.2]} 33...
Rd2 {[%clk 0:00:35.3]} 34. Nf4 {[%clk 0:00:46.5]} 34... Ng4 {[%clk 0:00:27.8]}
35. h3 {[%clk 0:00:27.2]} 35... Nf2+ {[%clk 0:00:27.2]} 36. Kg1 {[%clk
0:00:27.7]} 36... g5 {[%clk 0:00:27.4]} 37. Nfxd5 {[%clk 0:00:27.7]} 37... Nxh3+
{[%clk 0:00:27]} 38. Kf1 {[%clk 0:00:28.2]} 38... Rh2 {[%clk 0:00:18.9]} 39. Ke1
{[%clk 0:00:20.5]} 39... Ng1 {[%clk 0:00:15.3]} 40. Ne3 {[%clk 0:00:03.1]} 40...
Nf3+ {[%clk 0:00:15.1]} 41. Kf1 {[%clk 0:00:02.8]} 41... Nd2+ {[%clk 0:00:15.1]}
42. Kg1 {[%clk 0:00:02.5]} 42... Nf3+ {[%clk 0:00:15.8]} 43. Kf1 {[%clk
0:00:03.1]} 43... Rh1+ {[%clk 0:00:14.8]} 44. Kf2 {[%clk 0:00:03.5]} 44... Rxc1
{[%clk 0:00:15.6]} 45. Kxf3 {[%clk 0:00:04.2]} 45... Rxc3 {[%clk 0:00:15.9]} 46.
Ke4 {[%clk 0:00:04.9]} 46... Rxc7 {[%clk 0:00:14.2]} 47. g4 {[%clk 0:00:04.6]}
47... Nc6 {[%clk 0:00:13.5]} 48. Nd5 {[%clk 0:00:04.4]} 48... Rd7 {[%clk
0:00:12.4]} 49. Nb6 {[%clk 0:00:03.5]} 49... Rxd4+ {[%clk 0:00:11.2]} 0-1

[Event "Early-Titled-Tuesday-Blitz-July-09-2024"]
[Site "Chess.com"]
[Date "2024.07.09"]
[Round "7"]
[White "PapaieDudu"]
[Black "Alenzer"]
[Result "1-0"]
[WhiteElo "2400"]
[BlackElo "2168"]
[TimeControl "180+1"]
[EndTime "9:20:24 PDT"]
[Termination "PapaieDudu won by checkmate"]

1. e4 {[%clk 0:03:00.9]} 1... c5 {[%clk 0:02:57.5]} 2. Nf3 {[%clk 0:03:00.3]}
2... e6 {[%clk 0:02:57.5]} 3. d4 {[%clk 0:02:59.9]} 3... cxd4 {[%clk 0:02:58.1]}
4. Nxd4 {[%clk 0:03:00.1]} 4... Nf6 {[%clk 0:02:59]} 5. Nc3 {[%clk 0:03:00.2]}
5... Nc6 {[%clk 0:02:59.4]} 6. Bg5 {[%clk 0:02:57.7]} 6... Bb4 {[%clk
0:02:58.2]} 7. Bb5 {[%clk 0:02:56.3]} 7... Qa5 {[%clk 0:02:55.5]} 8. Bxc6 {[%clk
0:02:38.1]} 8... Bxc3+ {[%clk 0:02:51.3]} 9. bxc3 {[%clk 0:02:38]} 9... Qxc3+
{[%clk 0:02:50.2]} 10. Qd2 {[%clk 0:02:29.8]} 10... Qxd2+ {[%clk 0:02:48.1]} 11.
Kxd2 {[%clk 0:02:29.6]} 11... bxc6 {[%clk 0:02:48.5]} 12. f3 {[%clk 0:02:22.9]}
12... c5 {[%clk 0:02:40]} 13. Nb3 {[%clk 0:02:22.3]} 13... c4 {[%clk 0:02:35.9]}
14. Nd4 {[%clk 0:02:19.2]} 14... d5 {[%clk 0:02:35.2]} 15. Nb5 {[%clk
0:02:17.2]} 15... Kd7 {[%clk 0:02:31.7]} 16. e5 {[%clk 0:02:16.5]} 16... Ne8
{[%clk 0:02:22.8]} 17. h4 {[%clk 0:02:12.1]} 17... f6 {[%clk 0:02:22.1]} 18. Bf4
{[%clk 0:02:09.3]} 18... Ba6 {[%clk 0:02:17.5]} 19. a4 {[%clk 0:02:06.1]} 19...
f5 {[%clk 0:02:03.3]} 20. Nd4 {[%clk 0:01:59.3]} 20... Nc7 {[%clk 0:01:57]} 21.
Kc3 {[%clk 0:01:59]} 21... h6 {[%clk 0:01:52.3]} 22. h5 {[%clk 0:01:56.5]} 22...
Rab8 {[%clk 0:01:51.8]} 23. Rh3 {[%clk 0:01:56.3]} 23... Rhg8 {[%clk 0:01:34.9]}
24. Rg3 {[%clk 0:01:55.3]} 24... Bb7 {[%clk 0:01:13.7]} 25. Rg6 {[%clk
0:01:51.1]} 25... Ke7 {[%clk 0:00:58.3]} 26. Rh1 {[%clk 0:01:47.9]} 26... Rbf8
{[%clk 0:00:29.5]} 27. Rh3 {[%clk 0:01:44.7]} 27... Bc8 {[%clk 0:00:28.6]} 28.
Rhg3 {[%clk 0:01:40.2]} 28... Ne8 {[%clk 0:00:26]} 29. Nc6+ {[%clk 0:01:33.2]}
29... Kf7 {[%clk 0:00:23.8]} 30. Bc1 {[%clk 0:01:28.8]} 30... Nc7 {[%clk
0:00:20.4]} 31. Ba3 {[%clk 0:01:27]} 31... Re8 {[%clk 0:00:20.8]} 32. Nxa7
{[%clk 0:01:22.7]} 32... Bd7 {[%clk 0:00:21.1]} 33. Bd6 {[%clk 0:01:06.2]} 33...
Na6 {[%clk 0:00:18.3]} 34. Nb5 {[%clk 0:01:05.7]} 34... Rc8 {[%clk 0:00:12.8]}
35. Kd4 {[%clk 0:01:04.4]} 35... Nb8 {[%clk 0:00:10.8]} 36. Bc7 {[%clk
0:01:03.1]} 36... Nc6+ {[%clk 0:00:10.1]} 37. Kc5 {[%clk 0:01:01]} 37... Ne7
{[%clk 0:00:10]} 38. Nd6+ {[%clk 0:01:00.3]} 38... Kf8 {[%clk 0:00:08.1]} 39.
Nxc8 {[%clk 0:00:58.1]} 39... Nxg6 {[%clk 0:00:08.1]} 40. Nb6 {[%clk 0:00:46.2]}
40... Bxa4 {[%clk 0:00:04.8]} 41. Rxg6 {[%clk 0:00:37.8]} 41... Bxc2 {[%clk
0:00:04.2]} 42. Rxe6 {[%clk 0:00:37.6]} 42... Kf7 {[%clk 0:00:04.1]} 43. Kd6
{[%clk 0:00:35.7]} 43... f4 {[%clk 0:00:03.2]} 44. Nxd5 {[%clk 0:00:33.3]} 44...
Bf5 {[%clk 0:00:01.9]} 45. Re7+ {[%clk 0:00:32]} 45... Kf8 {[%clk 0:00:01.3]}
46. e6 {[%clk 0:00:21.1]} 46... g6 {[%clk 0:00:02.2]} 47. Rf7+ {[%clk
0:00:18.7]} 47... Ke8 {[%clk 0:00:02.4]} 48. Nf6# {[%clk 0:00:19.3]} 1-0

[Event "Early-Titled-Tuesday-Blitz-July-09-2024"]
[Site "Chess.com"]
[Date "2024.07.09"]
[Round "7"]
[White "mapleaff"]
[Black "ThanhNghia"]
[Result "0-1"]
[WhiteElo "2348"]
[BlackElo "2504"]
[TimeControl "180+1"]
[EndTime "9:20:25 PDT"]
[Termination "ThanhNghia won on time"]

1. d4 {[%clk 0:03:00.9]} 1... d5 {[%clk 0:02:59.6]} 2. Bf4 {[%clk 0:03:01.2]}
2... Nf6 {[%clk 0:02:56.2]} 3. Nf3 {[%clk 0:03:01.3]} 3... e6 {[%clk 0:02:49.2]}
4. e3 {[%clk 0:03:01.3]} 4... Bd6 {[%clk 0:02:46.2]} 5. Bg3 {[%clk 0:03:00.6]}
5... O-O {[%clk 0:02:44.4]} 6. Nbd2 {[%clk 0:03:00.7]} 6... b6 {[%clk
0:02:43.6]} 7. c3 {[%clk 0:03:00.5]} 7... c5 {[%clk 0:02:41.7]} 8. Ne5 {[%clk
0:02:59]} 8... Bb7 {[%clk 0:02:33.6]} 9. Bd3 {[%clk 0:02:58.2]} 9... Ne4 {[%clk
0:02:33.1]} 10. f4 {[%clk 0:02:46]} 10... f6 {[%clk 0:02:31.6]} 11. Nef3 {[%clk
0:02:44]} 11... Nd7 {[%clk 0:02:28.1]} 12. O-O {[%clk 0:02:43.2]} 12... Qc7
{[%clk 0:02:24.4]} 13. Qc2 {[%clk 0:02:39.4]} 13... f5 {[%clk 0:02:20.9]} 14.
Ne5 {[%clk 0:02:37]} 14... Bxe5 {[%clk 0:02:13.7]} 15. fxe5 {[%clk 0:02:34.1]}
15... a5 {[%clk 0:02:13.5]} 16. Nxe4 {[%clk 0:02:27.8]} 16... fxe4 {[%clk
0:02:07.1]} 17. Be2 {[%clk 0:02:27.8]} 17... cxd4 {[%clk 0:02:03.2]} 18. exd4
{[%clk 0:02:27.5]} 18... Ba6 {[%clk 0:02:01.7]} 19. Bg4 {[%clk 0:02:25.7]} 19...
Qc6 {[%clk 0:01:58.9]} 20. Rxf8+ {[%clk 0:02:16.3]} 20... Rxf8 {[%clk
0:01:57.5]} 21. Qd2 {[%clk 0:02:08.6]} 21... g6 {[%clk 0:01:48.9]} 22. h4 {[%clk
0:02:07.3]} 22... Rf7 {[%clk 0:01:47.4]} 23. h5 {[%clk 0:02:06.2]} 23... Nf8
{[%clk 0:01:45.6]} 24. Qg5 {[%clk 0:02:00.1]} 24... Qd7 {[%clk 0:01:35.5]} 25.
hxg6 {[%clk 0:01:37.8]} 25... hxg6 {[%clk 0:01:31.4]} 26. Re1 {[%clk 0:01:24.8]}
26... Qe7 {[%clk 0:01:22.2]} 27. Qxe7 {[%clk 0:01:14.9]} 27... Rxe7 {[%clk
0:01:20.9]} 28. Bh4 {[%clk 0:01:14.3]} 28... Rf7 {[%clk 0:01:18.6]} 29. Bd8
{[%clk 0:01:12]} 29... a4 {[%clk 0:01:05.7]} 30. Bd1 {[%clk 0:00:48.8]} 30... a3
{[%clk 0:01:00.9]} 31. b4 {[%clk 0:00:43.4]} 31... Rb7 {[%clk 0:00:55]} 32. Ba4
{[%clk 0:00:40]} 32... Bc4 {[%clk 0:00:54]} 33. Ra1 {[%clk 0:00:12.6]} 33... b5
{[%clk 0:00:50.4]} 34. Bb3 {[%clk 0:00:08.1]} 34... Bd3 {[%clk 0:00:50.4]} 35.
Bg5 {[%clk 0:00:05.2]} 35... Rc7 {[%clk 0:00:48.6]} 36. Rc1 {[%clk 0:00:02.5]}
36... Nd7 {[%clk 0:00:46.9]} 37. Kf2 {[%clk 0:00:02.5]} 37... Rc8 {[%clk
0:00:45.3]} 38. Ke3 {[%clk 0:00:02.6]} 38... Nb6 {[%clk 0:00:45]} 39. Kd2 {[%clk
0:00:01.9]} 39... Nc4+ {[%clk 0:00:43.6]} 40. Bxc4 {[%clk 0:00:02]} 40... Bxc4
{[%clk 0:00:43.4]} 41. Rc2 {[%clk 0:00:02.1]} 41... Rf8 {[%clk 0:00:42.7]} 42.
Bf6 {[%clk 0:00:02.1]} 42... Rxf6 {[%clk 0:00:40.1]} 43. exf6 {[%clk 0:00:01.9]}
43... Kf7 {[%clk 0:00:40.7]} 44. Ke3 {[%clk 0:00:02]} 44... Kxf6 {[%clk
0:00:40.8]} 45. Rf2+ {[%clk 0:00:02.5]} 45... Kg5 {[%clk 0:00:40.6]} 46. g3
{[%clk 0:00:02.8]} 46... Kg4 {[%clk 0:00:40.4]} 47. Rf6 {[%clk 0:00:03]} 47...
Bxa2 {[%clk 0:00:30.3]} 48. Rxg6+ {[%clk 0:00:02.8]} 48... Kf5 {[%clk
0:00:30.4]} 49. Rg8 {[%clk 0:00:03]} 49... Bc4 {[%clk 0:00:30.2]} 50. Ra8 {[%clk
0:00:03.1]} 50... a2 {[%clk 0:00:30.2]} 51. Ra5 {[%clk 0:00:02.9]} 51... Kg4
{[%clk 0:00:29.9]} 52. Kf2 {[%clk 0:00:02.2]} 52... Bb3 {[%clk 0:00:29.9]} 0-1

[Event "Early-Titled-Tuesday-Blitz-July-09-2024"]
[Site "Chess.com"]
[Date "2024.07.09"]
[Round "7"]
[White "tptagain"]
[Black "MetiForce"]
[Result "0-1"]
[WhiteElo "3038"]
[BlackElo "2852"]
[TimeControl "180+1"]
[EndTime "9:20:27 PDT"]
[Termination "MetiForce won by resignation"]

1. d4 {[%clk 0:03:00.9]} 1... Nf6 {[%clk 0:02:58.4]} 2. Nf3 {[%clk 0:03:00.7]}
2... e6 {[%clk 0:02:58.5]} 3. Bg5 {[%clk 0:03:00.3]} 3... d5 {[%clk 0:02:53.7]}
4. Nbd2 {[%clk 0:03:00.7]} 4... c5 {[%clk 0:02:52.4]} 5. e3 {[%clk 0:03:00.4]}
5... Nc6 {[%clk 0:02:52.2]} 6. c3 {[%clk 0:02:59.6]} 6... h6 {[%clk 0:02:52.2]}
7. Bh4 {[%clk 0:02:56.5]} 7... Bd6 {[%clk 0:02:51.5]} 8. Bd3 {[%clk 0:02:52.8]}
8... O-O {[%clk 0:02:51]} 9. O-O {[%clk 0:02:48.2]} 9... e5 {[%clk 0:02:40.8]}
10. dxc5 {[%clk 0:02:44.6]} 10... Bxc5 {[%clk 0:02:41.7]} 11. e4 {[%clk
0:02:43.6]} 11... Be7 {[%clk 0:02:42.2]} 12. Bg3 {[%clk 0:01:50.8]} 12... Bg4
{[%clk 0:02:26.4]} 13. Re1 {[%clk 0:01:42.6]} 13... Kh8 {[%clk 0:02:06.3]} 14.
h3 {[%clk 0:01:25.7]} 14... dxe4 {[%clk 0:02:00.2]} 15. Nxe4 {[%clk 0:01:24.7]}
15... Bh5 {[%clk 0:02:00.4]} 16. Nxf6 {[%clk 0:01:20.9]} 16... Bxf6 {[%clk
0:02:01.3]} 17. Be4 {[%clk 0:01:19.1]} 17... Qb6 {[%clk 0:01:47.9]} 18. Qb3
{[%clk 0:01:18.9]} 18... Rfe8 {[%clk 0:01:43.4]} 19. Nd2 {[%clk 0:01:13]} 19...
Rad8 {[%clk 0:01:38.3]} 20. Nc4 {[%clk 0:01:10.5]} 20... Qc7 {[%clk 0:01:36.6]}
21. Ne3 {[%clk 0:01:06.5]} 21... Bg5 {[%clk 0:01:33.7]} 22. Nd5 {[%clk
0:01:02.5]} 22... Qc8 {[%clk 0:01:34]} 23. Ne3 {[%clk 0:00:54.7]} 23... Bxe3
{[%clk 0:01:26.2]} 24. Rxe3 {[%clk 0:00:53.9]} 24... f6 {[%clk 0:01:19.6]} 25.
Rae1 {[%clk 0:00:49.5]} 25... Re7 {[%clk 0:01:18.6]} 26. f4 {[%clk 0:00:46.9]}
26... exf4 {[%clk 0:01:08.9]} 27. Bxf4 {[%clk 0:00:47.8]} 27... Rde8 {[%clk
0:01:01.8]} 28. Bd5 {[%clk 0:00:47.3]} 28... Rxe3 {[%clk 0:00:58.9]} 29. Rxe3
{[%clk 0:00:48.2]} 29... Rxe3 {[%clk 0:00:57]} 30. Bxe3 {[%clk 0:00:49.1]} 30...
a6 {[%clk 0:00:55.3]} 31. Qc4 {[%clk 0:00:40.2]} 31... Qe8 {[%clk 0:00:52.9]}
32. Qf4 {[%clk 0:00:37.4]} 32... Bf7 {[%clk 0:00:50.1]} 33. c4 {[%clk
0:00:37.8]} 33... Bxd5 {[%clk 0:00:21]} 34. cxd5 {[%clk 0:00:38.7]} 34... Nb4
{[%clk 0:00:21.5]} 35. d6 {[%clk 0:00:10.8]} 35... Nd5 {[%clk 0:00:21.1]} 36.
Qd4 {[%clk 0:00:11.2]} 36... Nxe3 {[%clk 0:00:20.2]} 37. d7 {[%clk 0:00:11.5]}
37... Qd8 {[%clk 0:00:20.2]} 38. g4 {[%clk 0:00:11.1]} 38... Nc4 {[%clk
0:00:18.2]} 39. Qxc4 {[%clk 0:00:01.9]} 39... Qxd7 {[%clk 0:00:18.6]} 40. Qb3
{[%clk 0:00:01.7]} 40... Qc7 {[%clk 0:00:17.7]} 41. Kg2 {[%clk 0:00:02]} 41...
Qc6+ {[%clk 0:00:16.7]} 42. Kh2 {[%clk 0:00:02.2]} 42... Qe4 {[%clk 0:00:15.5]}
43. Qf7 {[%clk 0:00:02.2]} 43... Kh7 {[%clk 0:00:15.2]} 44. Qc7 {[%clk 0:00:01]}
44... Qe2+ {[%clk 0:00:13.9]} 45. Kg3 {[%clk 0:00:01.2]} 45... Qxb2 {[%clk
0:00:14.5]} 46. Qd7 {[%clk 0:00:01]} 46... Qc3+ {[%clk 0:00:13.7]} 47. Kg2
{[%clk 0:00:01.8]} 47... Qc6+ {[%clk 0:00:12]} 0-1

[Event "Early-Titled-Tuesday-Blitz-July-09-2024"]
[Site "Chess.com"]
[Date "2024.07.09"]
[Round "7"]
[White "mwpchess"]
[Black "shimastream"]
[Result "1/2-1/2"]
[WhiteElo "2761"]
[BlackElo "2902"]
[TimeControl "180+1"]
[EndTime "9:20:28 PDT"]
[Termination "Game drawn by repetition"]

1. Nf3 {[%clk 0:03:00.9]} 1... d5 {[%clk 0:02:57.6]} 2. e3 {[%clk 0:02:57.8]}
2... g6 {[%clk 0:02:54.9]} 3. d4 {[%clk 0:02:55]} 3... Bg7 {[%clk 0:02:54.6]} 4.
Be2 {[%clk 0:02:49.9]} 4... Nf6 {[%clk 0:02:47.3]} 5. O-O {[%clk 0:02:49.3]}
5... O-O {[%clk 0:02:47.2]} 6. c4 {[%clk 0:02:48.8]} 6... b6 {[%clk 0:02:44.3]}
7. Nc3 {[%clk 0:02:47.4]} 7... Bb7 {[%clk 0:02:44.4]} 8. b3 {[%clk 0:02:42.3]}
8... Nbd7 {[%clk 0:02:36.9]} 9. Bb2 {[%clk 0:02:41.9]} 9... dxc4 {[%clk
0:02:36.6]} 10. Bxc4 {[%clk 0:02:37.9]} 10... e6 {[%clk 0:02:35.5]} 11. Qe2
{[%clk 0:02:36.7]} 11... a6 {[%clk 0:02:35.4]} 12. a4 {[%clk 0:02:33.8]} 12...
c5 {[%clk 0:02:28.8]} 13. Rfd1 {[%clk 0:02:31]} 13... Qc7 {[%clk 0:02:28.1]} 14.
d5 {[%clk 0:02:23.2]} 14... exd5 {[%clk 0:02:16.9]} 15. Nxd5 {[%clk 0:02:23.2]}
15... Nxd5 {[%clk 0:02:17.1]} 16. Bxd5 {[%clk 0:02:23.3]} 16... Bxd5 {[%clk
0:02:08.4]} 17. Rxd5 {[%clk 0:02:19]} 17... Nf6 {[%clk 0:02:08.6]} 18. Rdd1
{[%clk 0:02:13.9]} 18... Rfe8 {[%clk 0:02:07.3]} 19. Qc2 {[%clk 0:02:04.7]}
19... Qc6 {[%clk 0:01:50.8]} 20. h3 {[%clk 0:01:59.7]} 20... Ne4 {[%clk
0:01:46.9]} 21. Bxg7 {[%clk 0:01:58.5]} 21... Kxg7 {[%clk 0:01:47.8]} 22. Nd2
{[%clk 0:01:52.3]} 22... Nf6 {[%clk 0:01:43.2]} 23. Nf3 {[%clk 0:01:49.7]} 23...
Nd5 {[%clk 0:01:19.8]} 24. Qb2+ {[%clk 0:01:45.7]} 24... Kg8 {[%clk 0:00:55.9]}
25. Rd2 {[%clk 0:01:39.3]} 25... Nf6 {[%clk 0:00:51.8]} 26. Rad1 {[%clk
0:01:25.9]} 26... Ne4 {[%clk 0:00:51]} 27. Rd7 {[%clk 0:01:23]} 27... Qe6 {[%clk
0:00:50.4]} 28. Qc2 {[%clk 0:01:12.5]} 28... b5 {[%clk 0:00:46.6]} 29. Rb7
{[%clk 0:01:04.1]} 29... bxa4 {[%clk 0:00:34.6]} 30. bxa4 {[%clk 0:01:01.4]}
30... Rad8 {[%clk 0:00:35.1]} 31. Rdb1 {[%clk 0:00:51.8]} 31... Qf5 {[%clk
0:00:32.2]} 32. Rf1 {[%clk 0:00:38.3]} 32... g5 {[%clk 0:00:25.4]} 33. Ra7
{[%clk 0:00:35.5]} 33... Rd6 {[%clk 0:00:25.2]} 34. Rd1 {[%clk 0:00:28.3]} 34...
Red8 {[%clk 0:00:21.4]} 35. Rxd6 {[%clk 0:00:26.6]} 35... Rxd6 {[%clk
0:00:22.3]} 36. Qb2 {[%clk 0:00:22.8]} 36... Rf6 {[%clk 0:00:20.7]} 37. Ra8+
{[%clk 0:00:21]} 37... Kg7 {[%clk 0:00:20.9]} 38. Rxa6 {[%clk 0:00:21.3]} 38...
c4 {[%clk 0:00:09]} 39. Rxf6 {[%clk 0:00:18.2]} 39... Nxf6 {[%clk 0:00:09.1]}
40. Nd4 {[%clk 0:00:16.9]} 40... Qd3 {[%clk 0:00:08.5]} 41. Nb5 {[%clk
0:00:15.9]} 41... Kg6 {[%clk 0:00:07.8]} 42. Qe5 {[%clk 0:00:15.7]} 42... Ne4
{[%clk 0:00:07.7]} 43. g4 {[%clk 0:00:13.8]} 43... Qd1+ {[%clk 0:00:06.8]} 44.
Kg2 {[%clk 0:00:14.2]} 44... Qc2 {[%clk 0:00:07.7]} 45. Qf5+ {[%clk 0:00:14.1]}
45... Kg7 {[%clk 0:00:08.2]} 46. Qe5+ {[%clk 0:00:14.2]} 46... Kg6 {[%clk
0:00:08.2]} 47. Qf5+ {[%clk 0:00:14.5]} 47... Kg7 {[%clk 0:00:08.4]} 48. Qe5+
{[%clk 0:00:14.7]} 48... Kf8 {[%clk 0:00:08.7]} 49. Qb8+ {[%clk 0:00:14.2]}
49... Ke7 {[%clk 0:00:07.4]} 50. Qe5+ {[%clk 0:00:13.8]} 50... Kf8 {[%clk
0:00:02.8]} 51. Qh8+ {[%clk 0:00:12.5]} 51... Ke7 {[%clk 0:00:03]} 52. Qe5+
{[%clk 0:00:13.1]} 52... Kf8 {[%clk 0:00:02.6]} 1/2-1/2